bitfinex/quotes_BTCUSD_20220109
["timestamp","ask_amount","ask_price","bid_price","bid_amount"]
[1641749675187,0.386373,42057.0,42056.0,0.28323104]
[1641749675789,0.395373,42057.0,42056.0,0.28323104]
[1641749676989,0.386373,42057.0,42056.0,0.28323104]
[1641749677792,0.395373,42057.0,42056.0,0.28323104]
[1641749679240,0.386373,42057.0,42056.0,0.28323104]
[1641749679839,0.399373,42057.0,42056.0,0.28323104]
[1641749680840,0.399373,42057.0,42054.0,0.00020656]
[1641749681040,0.386373,42057.0,42054.0,0.00020655]
[1641749681444,0.436373,42057.0,42054.0,0.00020655]
[1641749681744,0.396373,42057.0,42054.0,0.00020655]
[1641749681941,0.05,42056.0,42054.0,0.00020655]
[1641749682141,0.386373,42055.0,42054.0,0.00020655]
[1641749682384,0.436373,42055.0,42053.0,0.00020656]
[1641749682586,0.536373,42055.0,42053.0,0.00020656]
[1641749682784,0.83528465,42054.0,42053.0,0.00020656]
[1641749682989,1.5502848,42054.0,42053.0,0.00020656]
[1641749683387,1.5502848,42054.0,42051.0,0.00020656]
[1641749683388,0.06071363,42052.0,42051.0,0.00020656]
[1641749683586,0.06071363,42052.0,42047.0,0.00082635]
[1641749683587,2.0121355,42052.0,42045.0,0.00082636]
[1641749683887,1.15,42051.0,42045.0,0.00082636]
[1641749684184,0.91034767,42046.0,42045.0,0.00082636]
[1641749684386,1.36169903,42046.0,42045.0,0.00082636]
[1641749684587,1.65415903,42046.0,42044.0,0.0001]
[1641749684786,0.74954348,42045.0,42044.0,0.0001]
[1641749684987,0.79704348,42045.0,42044.0,0.0001]
[1641749685588,0.89704348,42045.0,42044.0,0.0001]
[1641749685889,0.90804348,42045.0,42044.0,0.0001]
[1641749687035,0.89704348,42045.0,42044.0,0.0001]
[1641749687736,0.79704348,42045.0,42041.0,0.00421]
[1641749687935,0.80904348,42045.0,42042.0,0.00021045]
[1641749689135,0.79704348,42045.0,42041.0,0.00421]
[1641749689336,0.433873,42045.0,42041.0,0.00421]
[1641749689536,0.05,42044.0,42041.0,0.00421]
[1641749689789,0.386373,42043.0,42041.0,0.00421]
[1641749690286,0.486373,42043.0,42041.0,0.00421]
[1641749690785,1.796373,42043.0,42041.0,0.00421]
[1641749691183,2.216373,42043.0,42041.0,0.00421]
[1641749691594,2.216373,42043.0,42033.0,0.34498108]
[1641749691595,0.15296867,42031.0,42027.0,0.059485]
[1641749691789,0.15296867,42031.0,42012.0,0.7911]
[1641749691790,0.68082167,42031.0,42015.0,0.160641]
[1641749691985,0.68082167,42031.0,42015.0,0.04165]
[1641749692188,0.78082167,42031.0,42015.0,0.04165]
[1641749692485,0.78082167,42031.0,42019.0,0.29202956]
[1641749692486,0.67582167,42031.0,42019.0,0.29202956]
[1641749692686,0.77582167,42031.0,42019.0,0.29202956]
[1641749693735,0.77582167,42031.0,42026.0,0.23951775]
[1641749693935,0.20746867,42031.0,42026.0,0.23951775]
[1641749694139,0.54634167,42031.0,42026.0,0.23951775]
[1641749694338,0.15996867,42031.0,42026.0,0.23951775]
[1641749694536,0.54634167,42031.0,42026.0,0.23951775]
[1641749694738,0.54634167,42031.0,42027.0,0.059485]
[1641749695740,1.53434167,42031.0,42028.0,0.00021432]
[1641749695939,1.14534167,42031.0,42028.0,0.00021432]
[1641749696140,1.04534167,42031.0,42028.0,0.00021432]
[1641749697138,1.03434167,42031.0,42028.0,0.00042864]
[1641749697392,1.03434167,42031.0,42028.0,0.00021432]
[1641749697790,1.04634167,42031.0,42028.0,0.00021432]
[1641749698392,1.04634167,42031.0,42028.0,0.00021045]
[1641749699192,1.03434167,42031.0,42028.0,0.00021045]
[1641749699995,1.012,42031.0,42029.0,0.10112]
[1641749700497,1.398483,42031.0,42029.0,0.10112]
[1641749701138,1.386483,42031.0,42029.0,0.10112]
[1641749701339,1.806483,42031.0,42029.0,0.10112]
[1641749701937,1.812483,42031.0,42030.0,0.01911]
[1641749702139,1.426,42031.0,42030.0,0.01911]
[1641749702740,1.812483,42031.0,42030.0,0.01911]
[1641749703341,1.426,42031.0,42030.0,0.01911]
[1641749703742,1.42,42031.0,42030.0,0.00011]
[1641749703944,1.810483,42031.0,42030.0,0.02011]
[1641749704142,2.05923528,42031.0,42030.0,0.02011]
[1641749705086,2.05523528,42031.0,42030.0,0.00011]
[1641749705288,1.806483,42031.0,42030.0,0.00011]
[1641749705888,1.812483,42031.0,42030.0,0.01711]
[1641749706492,1.426,42031.0,42030.0,0.01711]
[1641749706889,1.006,42031.0,42030.0,0.01711]
[1641749707089,1.006,42031.0,42030.0,0.00011]
[1641749707288,1.0,42031.0,42030.0,0.00011]
[1641749707990,1.386483,42031.0,42030.0,0.05211]
[1641749709149,1.386483,42031.0,42030.0,0.00011]
[1641749709943,1.405483,42031.0,42030.0,0.00011]
[1641749711044,1.386483,42031.0,42030.0,0.00011]
[1641749711847,1.404483,42031.0,42030.0,0.00011]
[1641749712491,1.563773,42031.0,42030.0,0.00011]
[1641749712692,2.823773,42031.0,42030.0,0.00011]
[1641749713095,2.805773,42031.0,42030.0,0.00011]
[1641749713494,1.26,42028.0,42022.0,0.00082647]
[1641749713696,0.0580054,42026.0,42022.0,0.00082647]
[1641749713894,0.39736142,42025.0,42022.0,0.00082647]
[1641749714297,0.54736142,42025.0,42022.0,0.00082647]
[1641749714494,0.25409884,42024.0,42022.0,0.00082647]
[1641749714693,0.386483,42023.0,42022.0,0.00082647]
[1641749715096,0.386483,42023.0,42013.0,0.34491624]
[1641749715395,0.386483,42023.0,42011.0,0.26747913]
[1641749715697,1.1883864,42022.0,42011.0,0.004]
[1641749715895,0.05951658,42018.0,42011.0,0.004]
[1641749716142,1.26,42021.0,42014.0,0.00084257]
[1641749716342,0.386483,42020.0,42014.0,0.00084257]
[1641749716543,0.486483,42020.0,42014.0,0.00084257]
[1641749716742,0.5021442,42015.0,42014.0,0.00084257]
[1641749716944,0.5892992,42015.0,42014.0,0.00084257]
[1641749717143,0.5892992,42015.0,42011.0,0.004]
[1641749717345,0.5021442,42015.0,42011.0,0.004]
[1641749717543,0.38236107,42014.0,42011.0,0.004]
[1641749717743,0.386483,42013.0,42011.0,0.004]
[1641749718544,0.386483,42013.0,42011.0,0.3234416]
[1641749718845,0.011,42015.0,42011.0,0.3829486]
[1641749719244,0.011,42015.0,42011.0,0.004]
[1641749719448,0.386483,42014.0,42011.0,0.004]
[1641749719644,0.70750343,42014.0,42011.0,0.004]
[1641749719890,0.71850343,42014.0,42011.0,0.004]
[1641749720293,0.29005688,42013.0,42011.0,0.00326515]
[1641749720490,0.087155,42012.0,42011.0,0.00326515]
[1641749720895,0.011,42014.0,42011.0,0.00326515]
[1641749721091,0.31851091,42016.0,42011.0,0.00326515]
[1641749721292,0.386483,42015.0,42011.0,0.00326515]
[1641749721692,0.25339239,42012.0,42011.0,0.00326515]
[1641749722097,0.63987539,42012.0,42011.0,0.00326515]
[1641749722292,0.98269951,42012.0,42011.0,0.00326515]
[1641749722692,0.63987539,42012.0,42011.0,0.00326515]
[1641749722892,0.386483,42012.0,42011.0,0.00326515]
[1641749723943,0.009,42012.0,42011.0,0.64492015]
[1641749724343,0.009,42012.0,42011.0,1.03140315]
[1641749724542,0.009,42012.0,42011.0,0.43140315]
[1641749724744,0.009,42012.0,42011.0,0.04492015]
[1641749724943,0.009,42012.0,42011.0,0.34492015]
[1641749725145,0.26422778,42018.0,42011.0,0.04492015]
[1641749725544,0.386483,42017.0,42011.0,0.00326515]
[1641749725744,1.0,42012.0,42011.0,0.00326515]
[1641749727145,1.0,42012.0,42011.0,0.06277215]
[1641749727397,1.0,42012.0,42011.0,0.00326515]
[1641749727995,1.004,42012.0,42011.0,0.00926515]
[1641749728195,1.004,42012.0,42011.0,0.06877115]
[1641749728396,1.004,42012.0,42011.0,0.00926515]
[1641749728597,1.390483,42012.0,42011.0,0.00926515]
[1641749728796,1.38986194,42012.0,42011.0,0.00926515]
[1641749729195,1.38586194,42012.0,42011.0,0.00326515]
[1641749730003,1.39986194,42012.0,42011.0,0.00326515]
[1641749730897,1.47658194,42012.0,42011.0,0.00326515]
[1641749731143,1.46258194,42012.0,42011.0,0.00326515]
[1641749731345,1.50003029,42012.0,42011.0,0.00326515]
[1641749731943,1.51103029,42012.0,42011.0,0.00326515]
[1641749732646,1.43431029,42012.0,42011.0,0.00326515]
[1641749732843,1.04782729,42012.0,42011.0,0.00326515]
[1641749733844,1.03682729,42012.0,42011.0,0.00326515]
[1641749734144,1.04582729,42012.0,42011.0,0.00326515]
[1641749735102,1.03682729,42012.0,42011.0,0.00326515]
[1641749735903,1.04482729,42012.0,42011.0,0.00326515]
[1641749737403,1.03682729,42012.0,42011.0,0.00326515]
[1641749738005,1.40033623,42012.0,42011.0,0.00726515]
[1641749738207,1.78681923,42012.0,42011.0,0.00726515]
[1641749739244,1.75481923,42012.0,42011.0,0.00326515]
[1641749740844,1.36833623,42012.0,42011.0,0.00326515]
[1641749741445,1.75481923,42012.0,42011.0,0.00326515]
[1641749741644,1.76827047,42012.0,42011.0,0.00326515]
[1641749742292,1.05027853,42012.0,42011.0,0.00326515]
[1641749742692,1.05027853,42012.0,42011.0,0.05049134]
[1641749742893,1.05027853,42012.0,42011.0,1.10049134]
[1641749743292,1.05027853,42012.0,42011.0,1.40201816]
[1641749743493,1.04996145,42012.0,42011.0,1.40201816]
[1641749743693,1.04996145,42012.0,42011.0,0.47101216]
[1641749743892,1.04996145,42012.0,42011.0,0.47901216]
[1641749744293,1.04996145,42012.0,42011.0,0.41857159]
[1641749744893,1.04996145,42012.0,42011.0,0.91857159]
[1641749745292,1.04996145,42012.0,42011.0,0.47101216]
[1641749745695,1.04996145,42012.0,42011.0,0.78557159]
[1641749745892,1.04996145,42012.0,42011.0,0.79757159]
[1641749746169,1.04956145,42012.0,42011.0,0.79757159]
[1641749746368,1.04956145,42012.0,42011.0,0.39257159]
[1641749747169,1.04956145,42012.0,42011.0,0.38057159]
[1641749747373,1.04956145,42012.0,42011.0,0.43057159]
[1641749747571,1.04956145,42012.0,42011.0,0.38057159]
[1641749747971,1.04956145,42012.0,42011.0,0.39257159]
[1641749749275,0.57366145,42012.0,42011.0,1.63057159]
[1641749749475,0.57366145,42012.0,42011.0,2.01705459]
[1641749749673,0.57366145,42012.0,42011.0,2.11705459]
[1641749749892,0.09776445,42012.0,42011.0,2.11705459]
[1641749750093,0.09776445,42012.0,42011.0,2.17905459]
[1641749750295,0.86947351,42020.0,42018.0,0.00531858]
[1641749750494,0.86947351,42020.0,42019.0,0.059488]
[1641749750796,0.86947351,42020.0,42018.0,0.12487711]
[1641749751397,0.86947351,42020.0,42019.0,0.65679022]
[1641749751597,0.86947351,42020.0,42019.0,0.44576568]
[1641749751997,0.86947351,42020.0,42019.0,0.45676568]
[1641749752398,0.86947351,42020.0,42019.0,0.50676568]
[1641749752596,1.14617144,42030.0,42020.0,0.4]
[1641749752795,0.00051518,42026.0,42023.0,0.041642]
[1641749753943,0.00051518,42026.0,42023.0,0.048642]
[1641749754145,0.00051518,42026.0,42023.0,0.007]
[1641749754345,1.14617144,42030.0,42023.0,0.007]
[1641749754546,0.386483,42029.0,42023.0,0.007]
[1641749755148,0.386483,42029.0,42024.0,0.05969443]
[1641749755346,0.386483,42029.0,42024.0,0.05917443]
[1641749755947,0.386483,42029.0,42025.0,0.041642]
[1641749756149,0.386483,42029.0,42026.0,0.059486]
[1641749756347,0.386483,42029.0,42027.0,0.0594858]
[1641749756747,0.386483,42029.0,42027.0,0.1094858]
[1641749757998,0.386483,42029.0,42027.0,0.1124858]
[1641749758200,0.10353077,42032.0,42028.0,0.17844705]
[1641749758500,0.386483,42031.0,42029.0,0.05]
[1641749758702,0.386483,42031.0,42029.0,0.10948819]
[1641749758899,0.10353077,42032.0,42026.0,0.00020284]
[1641749759300,0.386483,42031.0,42026.0,0.00020284]
[1641749759901,0.386483,42031.0,42026.0,0.00040569]
[1641749760101,0.04,42031.0,42026.0,0.00120285]
[1641749760303,0.27864031,42030.0,42026.0,0.00120285]
[1641749761045,0.04,42031.0,42027.0,0.059484]
[1641749761351,0.386483,42030.0,42027.0,0.109484]
[1641749762046,0.418483,42030.0,42027.0,0.111484]
[1641749762848,0.418483,42030.0,42027.0,0.052]
[1641749763249,0.386483,42030.0,42026.0,0.00020687]
[1641749764048,0.41421159,42030.0,42026.0,0.00220687]
[1641749764249,0.41421159,42030.0,42026.0,0.00241374]
[1641749764448,0.41421159,42030.0,42026.0,0.00220687]
[1641749765095,0.51421159,42030.0,42028.0,0.17844705]
[1641749765296,0.48621159,42030.0,42028.0,0.17844705]
[1641749765895,0.38621159,42030.0,42028.0,0.17844705]
[1641749766094,0.41321159,42030.0,42028.0,0.18044705]
[1641749766396,0.41321159,42030.0,42029.0,0.28102027]
[1641749766397,0.027,42030.0,42029.0,0.28102027]
[1641749766595,0.027,42030.0,42029.0,0.60892949]
[1641749766795,0.027,42030.0,42029.0,1.04542249]
[1641749766996,0.027,42030.0,42029.0,0.71751327]
[1641749767198,0.10353077,42032.0,42029.0,0.71751327]
[1641749767395,0.10353077,42032.0,42030.0,0.059476]
[1641749767695,0.10353077,42032.0,42030.0,0.38844964]
[1641749767898,0.10353077,42032.0,42031.0,0.33757083]
[1641749768095,0.10353077,42032.0,42031.0,0.33681083]
[1641749768294,0.10324441,42032.0,42031.0,0.38681083]
[1641749769146,0.10324441,42032.0,42031.0,0.43319959]
[1641749769544,0.10324441,42032.0,42031.0,0.53319959]
[1641749769747,0.10324441,42032.0,42031.0,0.04638876]
[1641749769945,0.11024441,42032.0,42031.0,0.05938876]
[1641749770146,0.11024441,42032.0,42031.0,0.013]
[1641749770746,0.11024441,42032.0,42031.0,0.05937457]
[1641749771348,0.10324441,42032.0,42031.0,0.04637457]
[1641749772048,0.10324441,42032.0,42031.0,0.05637457]
[1641749772794,0.10324441,42032.0,42031.0,0.01]
[1641749773797,0.10324441,42032.0,42029.0,0.0594751]
[1641749773999,0.10324441,42032.0,42031.0,0.009]
[1641749774201,0.19011641,42032.0,42031.0,0.009]
[1641749774400,1.19011641,42032.0,42031.0,0.009]
[1641749775199,1.19011641,42032.0,42029.0,0.0594751]
[1641749775401,0.386493,42031.0,42029.0,0.0594751]
[1641749776055,0.021,42031.0,42029.0,0.0594751]
[1641749776647,0.021,42031.0,42029.0,0.1094751]
[1641749777049,0.386493,42030.0,42029.0,0.1094751]
[1641749777350,0.17501178,42032.0,42029.0,0.1094751]
[1641749777650,0.386493,42031.0,42029.0,0.1094751]
[1641749779152,0.17501178,42032.0,42029.0,0.1094751]
[1641749779994,0.19401178,42032.0,42029.0,0.1094751]
[1641749780795,0.386493,42031.0,42029.0,0.1094751]
[1641749781793,0.3954796,42031.0,42029.0,0.1094751]
[1641749782098,0.4144796,42031.0,42029.0,0.0594751]
[1641749783295,0.3944796,42031.0,42029.0,0.0594751]
[1641749783748,0.3944796,42031.0,42029.0,0.1094751]
[1641749784148,0.4134796,42031.0,42029.0,0.1094751]
[1641749785351,0.0089866,42031.0,42029.0,0.1094751]
[1641749786051,0.0259866,42031.0,42029.0,0.1094751]
[1641749787301,0.0089866,42031.0,42029.0,0.1094751]
[1641749788101,0.0259866,42031.0,42029.0,0.1094751]
[1641749788501,0.386486,42030.0,42029.0,0.1094751]
[1641749788702,0.3954726,42030.0,42029.0,0.1094751]
[1641749789301,0.0089866,42030.0,42029.0,0.1094751]
[1641749790001,0.0269866,42030.0,42029.0,0.1094751]
[1641749790402,0.0269866,42030.0,42029.0,0.39455965]
[1641749791451,0.0089866,42030.0,42029.0,0.39455965]
[1641749793751,0.0089866,42030.0,42027.0,0.101125]
[1641749795199,0.0089866,42030.0,42027.0,0.151125]
[1641749795400,0.0089866,42030.0,42027.0,0.101125]
[1641749795601,0.0089866,42030.0,42027.0,0.151125]
[1641749796201,0.0089866,42030.0,42027.0,0.155125]
[1641749796902,0.0089866,42030.0,42029.0,0.0594751]
[1641749798103,0.0089866,42030.0,42029.0,0.0634751]
[1641749799451,0.0089866,42030.0,42029.0,0.0594751]
[1641749800251,0.0089866,42030.0,42029.0,0.0644751]
[1641749801453,0.0089866,42030.0,42029.0,0.34451054]
[1641749802052,0.0089866,42030.0,42029.0,0.34751054]
[1641749803301,0.0089866,42030.0,42029.0,0.34451054]
[1641749803902,0.0089866,42030.0,42029.0,0.39100139]
[1641749804101,0.0089866,42030.0,42029.0,0.39500139]
[1641749804704,0.0089866,42030.0,42029.0,0.10996595]
[1641749805103,0.0089866,42030.0,42029.0,0.0634751]
[1641749805404,0.0089866,42030.0,42029.0,0.0594751]
[1641749806161,0.0089866,42030.0,42029.0,0.0634751]
[1641749806361,0.0089866,42030.0,42029.0,0.1099755]
[1641749807363,0.0089866,42030.0,42029.0,0.2249275]
[1641749807967,1.1089866,42030.0,42026.0,0.00711773]
[1641749808163,0.0012446,42027.0,42026.0,0.00020659]
[1641749808361,1.1961112,42027.0,42026.0,0.00020659]
[1641749808562,1.3461112,42027.0,42026.0,0.00020659]
[1641749808963,1.9337434,42027.0,42024.0,0.00020659]
[1641749809163,0.95,42025.0,42024.0,0.00020659]
[1641749809364,1.3454726,42025.0,42024.0,0.00020659]
[1641749809563,0.5454726,42025.0,42024.0,0.00020659]
[1641749810012,0.5454726,42025.0,42022.0,0.00020659]
[1641749810217,0.41416714,42024.0,42022.0,0.00020659]
[1641749810415,0.42315374,42024.0,42022.0,0.00020659]
[1641749810614,0.52315374,42024.0,42022.0,0.00020659]
[1641749811014,0.42315374,42024.0,42022.0,0.00020659]
[1641749811215,0.42315374,42024.0,42021.0,0.05375281]
[1641749811414,0.42315374,42024.0,42021.0,0.0002066]
[1641749812015,0.0948666,42024.0,42021.0,0.0002066]
[1641749812416,0.0948666,42024.0,42020.0,0.0002066]
[1641749813217,0.0948666,42024.0,42020.0,0.0004132]
[1641749813417,0.0948666,42024.0,42020.0,0.0002066]
[1641749814056,0.31195321,42023.0,42020.0,0.0002066]
[1641749814253,0.386486,42022.0,42020.0,0.0002066]
[1641749814454,0.3954726,42022.0,42020.0,0.0002066]
[1641749815657,0.3954726,42022.0,42020.0,0.05354766]
[1641749815860,0.3954726,42022.0,42019.0,0.0002066]
[1641749816558,0.3954726,42022.0,42012.0,0.61950696]
[1641749816559,0.7486123,42020.0,42018.0,0.0002066]
[1641749816758,0.386486,42019.0,42018.0,0.0002066]
[1641749816957,0.70639177,42019.0,42018.0,0.0002066]
[1641749817158,0.70928033,42019.0,42018.0,0.0002066]
[1641749817402,0.70749538,42019.0,42018.0,0.0002066]
[1641749817802,0.70749538,42019.0,42016.0,0.00020661]
[1641749818407,0.3954726,42019.0,42016.0,0.05375895]
[1641749818603,0.3954726,42019.0,42016.0,0.00020661]
[1641749819006,0.3954726,42019.0,42011.0,0.20096969]
[1641749819007,1.15,42012.0,42011.0,0.05816569]
[1641749819204,1.2448666,42012.0,42011.0,0.05816569]
[1641749819403,1.2448666,42012.0,42010.0,0.00082656]
[1641749819606,0.736486,42011.0,42010.0,0.00082656]
[1641749819804,0.736486,42011.0,42001.0,0.06216569]
[1641749819805,1.15,42010.0,42001.0,0.06216569]
[1641749820003,1.15,42010.0,42000.0,5.91127883]
[1641749820004,0.23525416,42001.0,42000.0,5.91117883]
[1641749820203,0.28525416,42001.0,42000.0,4.9899]
[1641749820606,0.23525416,42001.0,42000.0,4.9899]
[1641749821058,0.23525416,42001.0,42000.0,2.9262]
[1641749821059,1.33525416,42001.0,42000.0,2.9262]
[1641749821257,0.28525416,42001.0,42000.0,2.8263]
[1641749821457,1.18525416,42001.0,42000.0,1.8376]
[1641749821657,0.38647913,42001.0,42000.0,1.8376]
[1641749821854,1.64647913,42001.0,42000.0,1.8176]
[1641749822054,2.77010608,42001.0,42000.0,1.1166]
[1641749822256,2.77988111,42001.0,42000.0,1.1166]
[1641749822455,2.78113408,42001.0,42000.0,1.1166]
[1641749822654,2.78113408,42001.0,42000.0,1.04937136]
[1641749823454,2.81763408,42001.0,42000.0,1.04937136]
[1641749824256,2.83762068,42001.0,42000.0,0.23823931]
[1641749825601,2.82662068,42001.0,42000.0,0.23823931]
[1641749826303,2.83862068,42001.0,42000.0,0.23823931]
[1641749826702,0.84147973,42001.0,42000.0,0.23823931]
[1641749826901,0.4549726,42001.0,41998.0,0.0002144]
[1641749827101,0.0209866,42001.0,41998.0,0.0004288]
[1641749827302,0.0209866,42001.0,41999.0,0.041667]
[1641749827502,0.0209866,42001.0,42000.0,0.386486]
[1641749827802,0.0089866,42001.0,42000.0,0.436486]
[1641749828001,0.0089866,42001.0,42000.0,0.05]
[1641749828201,0.0089866,42001.0,41998.0,0.00042072]
[1641749828401,0.0429866,42001.0,41998.0,0.00020632]
[1641749828655,1.3029866,42001.0,41998.0,0.00020632]
[1641749828855,0.72113674,42000.0,41998.0,0.00020632]
[1641749829053,0.73012334,42000.0,41998.0,0.00020632]
[1641749829255,1.1,41994.0,41984.0,0.00043]
[1641749829456,0.50667125,41993.0,41991.0,0.00082542]
[1641749829653,1.1475,41992.0,41991.0,0.00082542]
[1641749829853,1.533986,41992.0,41991.0,0.00082542]
[1641749830257,1.80553257,41992.0,41991.0,0.00082542]
[1641749830453,1.80553257,41992.0,41984.0,0.05402114]
[1641749830654,0.08588,41991.0,41984.0,0.05402114]
[1641749831054,0.13588,41991.0,41984.0,0.05402114]
[1641749831255,0.31932803,41985.0,41984.0,0.00043]
[1641749831656,0.45,41984.0,41983.0,0.00022]
[1641749831856,0.386486,41984.0,41983.0,0.00022]
[1641749832314,0.396486,41984.0,41983.0,0.00022]
[1641749833618,0.386486,41984.0,41983.0,0.00022]
[1641749834217,1.02489463,41984.0,41983.0,0.00022]
[1641749834418,1.1425121,41984.0,41983.0,0.00022]
[1641749834619,1.19371843,41984.0,41983.0,0.00022]
[1641749835018,2.45371843,41984.0,41983.0,0.00022]
[1641749835220,0.08588,41983.0,41981.0,0.03283794]
[1641749835621,0.31932803,41985.0,41981.0,0.03283794]
[1641749835820,0.31932803,41985.0,41981.0,0.02783794]
[1641749836063,0.31932803,41985.0,41981.0,0.0276235]
[1641749836364,0.013,41985.0,41980.0,0.05]
[1641749836566,0.013,41985.0,41980.0,0.041685]
[1641749836863,0.386486,41984.0,41979.0,0.119091]
[1641749837063,0.013,41985.0,41979.0,0.169091]
[1641749837263,0.013,41985.0,41979.0,0.05]
[1641749837564,0.386486,41984.0,41977.0,0.45502572]
[1641749837766,0.3297282,41986.0,41980.0,0.05359689]
[1641749837966,0.00121092,41979.0,41974.0,0.00043]
[1641749838163,0.00121092,41979.0,41975.0,0.05]
[1641749838563,0.00121092,41979.0,41974.0,0.00043]
[1641749838762,0.00120836,41985.0,41977.0,0.30935222]
[1641749838965,0.386486,41984.0,41977.0,0.30935222]
[1641749839168,0.011,41986.0,41977.0,0.66045141]
[1641749839365,0.011,41986.0,41978.0,0.39245256]
[1641749839562,0.35038214,41992.0,41979.0,0.00756341]
[1641749839810,0.35038214,41992.0,41978.0,0.436486]
[1641749839811,0.35936874,41992.0,41983.0,0.041683]
[1641749840010,0.0089866,41992.0,41985.0,0.28063529]
[1641749840213,0.0089866,41992.0,41984.0,0.059544]
[1641749840410,0.386486,41991.0,41984.0,0.059544]
[1641749840616,0.000207,41988.0,41984.0,0.101225]
[1641749840812,0.000207,41988.0,41982.0,0.05]
[1641749841013,0.000207,41988.0,41979.0,0.05]
[1641749841312,0.000207,41988.0,41985.0,0.28428658]
[1641749841512,0.000207,41988.0,41985.0,0.34166486]
[1641749841714,0.000207,41988.0,41986.0,0.39401443]
[1641749842313,0.067207,41988.0,41986.0,0.39401443]
[1641749842713,0.067,41988.0,41986.0,0.39401443]
[1641749843216,0.067,41988.0,41986.0,0.386486]
[1641749844258,0.00020701,41989.0,41986.0,0.390486]
[1641749844456,0.007,41988.0,41987.0,0.04168]
[1641749844657,0.007,41988.0,41987.0,0.428166]
[1641749844857,0.007,41988.0,41987.0,0.478166]
[1641749845059,0.007,41988.0,41987.0,0.537701]
[1641749845658,0.00019922,41989.0,41987.0,0.537701]
[1641749845858,1.0,41988.0,41987.0,0.537701]
[1641749846058,1.0,41988.0,41987.0,0.151215]
[1641749846457,1.016,41988.0,41987.0,0.151215]
[1641749846657,1.016,41988.0,41987.0,0.801215]
[1641749847709,1.0,41988.0,41987.0,0.801215]
[1641749847909,1.0,41988.0,41987.0,0.848715]
[1641749848310,1.0,41988.0,41987.0,0.864715]
[1641749848611,1.0,41988.0,41987.0,1.351201]
[1641749848810,1.0,41988.0,41987.0,1.401201]
[1641749849110,1.0,41988.0,41987.0,1.501201]
[1641749849310,0.523832,41988.0,41987.0,1.50244761]
[1641749849512,0.523832,41988.0,41987.0,0.73644761]
[1641749849710,0.523832,41988.0,41987.0,0.58644761]
[1641749849909,0.523832,41988.0,41987.0,0.73644761]
[1641749850310,0.523832,41988.0,41987.0,1.07044761]
[1641749850511,0.523832,41988.0,41987.0,1.21569629]
[1641749850712,0.523832,41988.0,41987.0,0.49573468]
[1641749850912,0.5328186,41988.0,41987.0,0.400486]
[1641749851162,0.5328186,41988.0,41987.0,0.014]
[1641749851663,0.5328186,41988.0,41986.0,0.0476336]
[1641749851862,0.00019951,41990.0,41988.0,0.6]
[1641749852065,0.00019951,41990.0,41989.0,1.486486]
[1641749852363,0.00019951,41990.0,41989.0,1.583986]
[1641749852364,0.00119951,41990.0,41989.0,1.583986]
[1641749852561,0.00119951,41990.0,41989.0,1.683986]
[1641749852762,0.00050945,41994.0,41991.0,0.04761551]
[1641749852962,0.00050945,41994.0,41992.0,0.433986]
[1641749853162,0.00050945,41994.0,41993.0,0.69259014]
[1641749853363,0.00050945,41994.0,41993.0,0.74009014]
[1641749853562,0.00050945,41994.0,41993.0,0.79009014]
[1641749854263,0.00030163,41996.0,41993.0,0.79009014]
[1641749854463,0.00030163,41996.0,41994.0,0.04762293]
[1641749854805,0.00030163,41996.0,41995.0,0.109529]
[1641749855003,0.0002,41996.0,41995.0,0.109529]
[1641749855203,0.0002,41996.0,41995.0,0.05]
[1641749855603,0.386686,41996.0,41993.0,0.05]
[1641749855802,0.386686,41996.0,41991.0,0.04762904]
[1641749856002,0.33144152,41995.0,41988.0,0.119064]
[1641749856402,0.39080304,41994.0,41985.0,0.510127]
[1641749856602,0.39080304,41994.0,41984.0,0.0952637]
[1641749856806,1.82363304,41994.0,41978.0,0.0475]
[1641749857005,1.82363304,41994.0,41974.0,0.00169602]
[1641749857305,1.82363304,41994.0,41983.0,0.00021074]
[1641749857306,0.00124567,41990.0,41983.0,0.00021074]
[1641749857506,0.35892537,41986.0,41983.0,0.00021074]
[1641749858003,0.33947621,41985.0,41983.0,0.00021074]
[1641749858202,0.33947621,41985.0,41982.0,0.05021068]
[1641749858402,0.1048,41988.0,41982.0,0.05021068]
[1641749858403,0.25523512,41988.0,41987.0,0.07650393]
[1641749858654,1.19172112,41988.0,41987.0,0.07650393]
[1641749858854,2.50292289,41988.0,41987.0,0.07650393]
[1641749859055,2.8917191,41988.0,41987.0,0.07650393]
[1641749859657,1.6317191,41988.0,41987.0,0.07650393]
[1641749859861,1.0817191,41988.0,41983.0,0.00021068]
[1641749860158,0.43879621,41988.0,41983.0,0.00021068]
[1641749860360,0.44879621,41988.0,41983.0,0.00021068]
[1641749860560,0.22951178,41984.0,41983.0,0.00021068]
[1641749860759,0.44879621,41988.0,41983.0,0.00021068]
[1641749860961,0.05,41984.0,41983.0,0.00021068]
[1641749861164,0.63588,41984.0,41983.0,0.00021068]
[1641749861362,0.13588,41984.0,41983.0,0.00021068]
[1641749861562,0.13588,41984.0,41983.0,0.00020659]
[1641749862506,0.55,41983.0,41978.0,0.04520659]
[1641749862703,0.55,41983.0,41977.0,0.00082649]
[1641749862704,0.55,41983.0,41981.0,0.00020653]
[1641749862905,0.386486,41982.0,41981.0,0.00020653]
[1641749863306,0.186486,41982.0,41981.0,0.00020653]
[1641749863708,0.236486,41982.0,41981.0,0.00020653]
[1641749863912,0.28089372,41977.0,41975.0,0.04764726]
[1641749864107,0.44305015,41980.0,41975.0,0.04764726]
[1641749864306,0.15,41980.0,41974.0,0.00043]
[1641749864507,0.009,41977.0,41974.0,0.00043]
[1641749864707,0.009,41977.0,41975.0,0.386854]
[1641749865111,0.009,41977.0,41975.0,0.436854]
[1641749865309,0.009,41977.0,41975.0,0.05]
[1641749865506,0.009,41977.0,41975.0,0.09764763]
[1641749865907,0.23969226,41978.0,41975.0,0.09764763]
[1641749866355,0.009,41977.0,41975.0,0.09764763]
[1641749866558,0.059,41977.0,41974.0,0.00673586]
[1641749866757,0.009,41977.0,41974.0,0.00053924]
[1641749866960,0.009,41977.0,41974.0,0.00021924]
[1641749867157,0.85,41976.0,41974.0,0.00021446]
[1641749867356,0.272309,41975.0,41974.0,0.00021446]
[1641749867556,0.322309,41975.0,41974.0,0.00021446]
[1641749867761,0.2872,41980.0,41974.0,0.00021446]
[1641749867958,0.49889326,41983.0,41981.0,0.01]